Cogmind - Beta 11 X5 @@@ ROGUE MODE // 2021.06.14 @ 19:09:01 Player: blelm Result: Destroyed by Enhanced Grunt with Neutron Cannon Performance ------------- Evolutions (4) 2000 Regions Visited (14) 2800 Robots Destroyed (99) 495 Value Destroyed (3295) 3295 Prototype IDs (18) 360 Alien Tech Used (0) 0 Bonus (758) 758 TOTAL SCORE: 9708 Bonus ------- High Alert Combat Kills 212 Follower Combat Kills 141 Met Data Miner 300 Met Imprinter 300 Friendly Fire -195 Cogmind --------- Core Integrity 0/850 Matter 230/300 Energy 100/100 System Corruption 1% Temperature Cool (6) Movement Core (1400) Ox27 Location -6/Data Miner Parts ------- > --- POWER (2) -------- (None) > --- PROPULSION (4) --- (None) > --- UTILITY (6) ------ Huge Storage Unit Enhanced Optical Array System Shield > --- WEAPON (3) ------- CR-A16's Pointy Stick > --- INVENTORY (25) --- Advanced Heat Sink High-capacity Storage Unit High-capacity Battery (250) Matter Compressor (250) Improved Transmission Jammer Heavy Reactive Plating Hacking Suite Deep Network Scanner System Shield Ghost Barrier Quantum Router Long-range Tractor Beam High-powered Electrolaser High-powered Electrolaser High-powered Electrolaser High-powered Electrolaser Plasma Rifle Heavy Plasma Cannon Magnetic Acceleration Cannon Grenade Launcher Peak State ------------ > --- POWER ------------ Heavy Deuterium Engine Angular Momentum Engine > --- PROPULSION ------- Improved Medium Treads Improved Medium Treads Wheel Compact Wheel > --- UTILITY ---------- Improved Heat Sink Improved Cooling System Huge Storage Unit Enhanced Optical Array Layered Medium Armor Plating System Shield > --- WEAPON ----------- Precision Shock Rifle Makeshift Spear CR-A16's Pointy Stick > --- INVENTORY -------- Advanced Heat Sink High-capacity Storage Unit High-capacity Battery Matter Compressor Improved Transmission Jammer Heavy Reactive Plating Hacking Suite Deep Network Scanner System Shield Ghost Barrier Quantum Router Long-range Tractor Beam High-powered Electrolaser High-powered Electrolaser High-powered Electrolaser High-powered Electrolaser Plasma Rifle Heavy Plasma Cannon Magnetic Acceleration Cannon Grenade Launcher [Rating: 66] Favorites ----------- Power Heavy Deuterium Engine Engine Heavy Deuterium Engine Power Core Light Nuclear Core Propulsion Light Treads Treads Light Treads Leg Aluminum Leg Wheel Compact Wheel Utility High-capacity Storage Unit Device Improved Heat Sink Storage High-capacity Storage Unit Processor Improved Signal Interpreter Hackware System Shield Protection Improved Medium Armor Plating Weapon High-powered Electrolaser Energy Gun High-powered Electrolaser Energy Cannon Heavy Plasma Cannon Ballistic Gun Assault Rifle Ballistic Cannon Magnetic Acceleration Cannon Launcher Grenade Launcher Piercing Weapon CR-A16's Pointy Stick Build | -11 -10 -10 -10 -9 -8 -7 -7 -7 -7 -6 -6 -6 -6 -6 ------- Run | Scr Mat Min Exi Min Mat Fac Low Low Zio Pro Fac Low Low Dat Slots Evolved 8 | . . . . . 4 2 . . . . 2 . . . Power 1 | . . . . . . . . . . . 1 . . . Propulsion 2 | . . . . . 1 1 . . . . . . . . Utility 4 | . . . . . 3 . . . . . 1 . . . Weapon 1 | . . . . . . 1 . . . . . . . . Parts Attached 121 | . 9 4 . . 32 28 . 9 9 2 9 5 10 4 Power 9 | . 1 . . . 4 2 . . . . 1 . 1 . Engine 8 | . 1 . . . 3 2 . . . . 1 . 1 . Core 1 | . . . . . 1 . . . . . . . . . Reactor . | . . . . . . . . . . . . . . . Propulsion 31 | . 3 1 . . 8 8 . 1 4 . 1 2 3 . Treads 20 | . . 1 . . 5 7 . 1 3 . . 1 2 . Leg . | . . . . . . . . . . . . . . . Wheel 11 | . 3 . . . 3 1 . . 1 . 1 1 1 . Hover . | . . . . . . . . . . . . . . . Flight . | . . . . . . . . . . . . . . . Utility 29 | . 2 1 . . 10 6 . 2 1 1 3 1 2 . Device 12 | . . . . . 5 4 . 1 . 1 1 . . . Storage 3 | . 1 . . . . 1 . . 1 . . . . . Processor 3 | . . . . . . 1 . . . . 1 . 1 . Hackware 1 | . . . . . . . . . . . 1 . . . Protection 10 | . 1 1 . . 5 . . 1 . . . 1 1 . Artifact . | . . . . . . . . . . . . . . . Weapon 52 | . 3 2 . . 10 12 . 6 4 1 4 2 4 4 Energy Gun 20 | . . . . . 4 9 . 3 2 . . 1 . 1 Energy Cannon 3 | . . . . . . . . . 1 . 2 . . . Ballistic Gun 8 | . 2 1 . . 3 2 . . . . . . . . Ballistic Cannon 10 | . . . . . 1 1 . 2 1 . 2 1 2 . Launcher 9 | . 1 1 . . 2 . . 1 . 1 . . 2 1 Special Weapon . | . . . . . . . . . . . . . . . Impact Weapon . | . . . . . . . . . . . . . . . Slashing Weapon . | . . . . . . . . . . . . . . . Piercing Weapon 2 | . . . . . . . . . . . . . . 2 Special Melee Weapon . | . . . . . . . . . . . . . . . Unidentified Prototypes 7 | . . . . . 2 5 . . . . . . . . Corrupted Parts 5 | . . . . . . . . 2 3 . . . . . System Corruption 27 | . . . . . . . . 12 15 . . . . . Parts Lost 47 | . 1 2 . . 15 5 . 3 . . . 3 6 12 Power 5 | . . . . . 2 . . . . . . . 1 2 Propulsion 19 | . 1 1 . . 5 2 . 1 . . . 2 3 4 Utility 17 | . . 1 . . 7 2 . 2 . . . . 2 3 Weapon 6 | . . . . . 1 1 . . . . . 1 . 3 Highest Loss Streak 12 | . 1 2 . . 7 4 . 3 . . . 2 3 12 Average Slot Usage (%) 96 | . 95 99 100 100 87 88 100 99 98 100 100 99 95 93 Engine 9 | . 13 14 14 14 8 7 7 7 7 7 13 13 12 11 Treads 15 | . . 10 14 14 21 15 23 23 19 15 13 13 12 11 Wheel 12 | . 22 17 14 14 5 14 7 7 10 15 13 13 12 12 Device 11 | . . . . . 16 11 15 14 15 21 20 19 13 11 Storage 8 | . 14 14 14 14 9 7 7 7 7 7 6 6 6 6 Processor 2 | . . . . . . 1 7 7 7 1 . . 1 6 Protection 8 | . 10 14 14 14 8 7 7 7 7 7 6 6 8 5 Energy Gun 12 | . 14 14 14 14 9 9 15 15 14 15 13 12 13 8 Ballistic Gun 4 | . 13 12 14 14 3 4 . . . . . . . . Ballistic Cannon 4 | . . . . . 5 7 7 6 6 3 1 5 5 3 Naked Turns . | . . . . . . . . . . . . . . . Heaviest Build 135 | 13 53 53 52 52 68 77 76 77 117 118 130 135 135 131 Greatest Support 60 | 20 26 26 16 16 60 40 12 12 28 28 28 28 28 26 Greatest Overweight (x) 27 | . 5 3 3 3 4 6 6 6 6 4 4 4 5 27 Average Overweight (x) 3 | . . 2 3 3 1 2 6 5 4 4 4 4 4 5 Largest Inventory Capacity 25 | . 20 20 20 20 20 20 20 20 25 25 25 25 25 25 Average Capacity 21 | . 18 20 20 20 20 20 20 20 20 25 25 25 25 25 Most Carried 25 | . 20 20 18 20 20 20 20 20 23 25 25 25 24 22 Average Carried 19 | . 12 18 18 18 18 19 20 19 20 23 24 22 22 19 Final Capacity 25 | 8 20 20 20 20 20 20 20 20 25 25 25 25 25 25 Final Carried 25 | 6 19 18 18 20 19 20 20 20 23 24 25 24 19 21 Class Distribution -------------------- 36% | Mutant 29% | Tank 26% | Scavenger-Tank 7% | Scavenger-Mutant Dominant Class ---------------- Mutant | -10/Materials Mutant | -10/Mines Mutant | -10/Exiles Mutant | -9/Mines Scavenger-Mutant | -8/Materials Tank | -7/Factory Tank | -7/Lower Caves Scavenger-Tank | -7/Lower Caves Scavenger-Tank | -7/Zion Tank | -6/Proximity Caves Mutant | -6/Factory Scavenger-Tank | -6/Lower Caves Scavenger-Tank | -6/Lower Caves Scavenger-Tank | -6/Data Miner Resources | -11 -10 -10 -10 -9 -8 -7 -7 -7 -7 -6 -6 -6 -6 -6 ----------- Run | Scr Mat Min Exi Min Mat Fac Low Low Zio Pro Fac Low Low Dat Matter Collected 3242 | 174 211 63 . . 662 714 15 137 239 354 357 178 138 . Remotely 669 | . . . . . 29 184 . . . 181 107 168 . . Salvage Created 3562 | . 516 58 . . 930 740 . 225 . 52 213 427 374 27 Parts 186 | . 25 2 . . 58 39 . 14 . 6 12 11 15 4 Haulers Intercepted 8 | . 1 . . . 3 4 . . . . . . . . Recyclers Shooed 6 | . 1 . . . 1 4 . . . . . . . . Parts Field Recycled . | . . . . . . . . . . . . . . . Retrieved Matter . | . . . . . . . . . . . . . . . Parts Self-Destructed 29 | . . . . . . . . 6 . 4 . 11 8 . Prevented 17 | . . . . . . . . 11 . 1 . . 5 . Kills | -11 -10 -10 -10 -9 -8 -7 -7 -7 -7 -6 -6 -6 -6 -6 ------- Run | Scr Mat Min Exi Min Mat Fac Low Low Zio Pro Fac Low Low Dat Combat Hostiles Destroyed 72 | . 6 1 . . 21 14 . 3 . 4 3 9 11 . Guns 36 | . 3 1 . . 11 8 . 2 . . 1 6 4 . Cannons 13 | . . . . . 1 6 . . . . 2 3 1 . AOE 20 | . 3 . . . 9 . . . . 4 . . 4 . Classes Destroyed 14 | . 5 . . . 6 1 . 1 . . . . 1 . Worker 4 | . 1 . . . 3 . . . . . . . . . Builder 4 | . . . . . 3 1 . . . . . . . . Hauler 8 | . 1 . . . 3 4 . . . . . . . . Recycler 5 | . 3 . . . 1 . . . . . 1 . . . Operator 1 | . 1 . . . . . . . . . . . . . Watcher 4 | . . . . . 2 2 . . . . . . . . Swarmer 21 | . . . . . 3 3 . 1 . 4 2 1 7 . Grunt 35 | . 6 1 . . 11 7 . . . . 1 6 3 . Brawler 2 | . . . . . 1 . . . . . . 1 . . Duelist 1 | . . . . . . . . . . . . . 1 . Sentry 7 | . . . . . 5 1 . . . . . 1 . . Hunter 2 | . . . . . 1 1 . . . . . . . . Programmer 3 | . . . . . . 2 . 1 . . . . . . Behemoth 1 | . . . . . . . . 1 . . . . . . Packrat 1 | . . . . . . . . 1 . . . . . . Best Kill Streak 9 | . 5 1 . . 9 3 . 1 . 4 3 4 4 1 Combat Bots Only 7 | . 3 1 . . 7 3 . 1 . 4 2 4 4 . Max Kills in Single Turn 4 | . 2 1 . . 4 1 . 1 . 2 1 1 2 1 Gunslinging . | . . . . . . . . . . . . . . . Exploded 3 | . 2 . . . 3 . . . . 2 . . 2 . Melee . | . . . . . . . . . . . . . . . Uniques/NPCs Destroyed 1 | . . . . . . . . . . . . . . 1 Data Miner (-6/Data Miner) Combat | -11 -10 -10 -10 -9 -8 -7 -7 -7 -7 -6 -6 -6 -6 -6 -------- Run | Scr Mat Min Exi Min Mat Fac Low Low Zio Pro Fac Low Low Dat Damage Taken 7499 | . 271 199 . . 2042 949 . 594 . 64 135 609 644 1992 Core 1438 | . 47 15 . . 431 57 . 34 . . 16 11 78 749 Absorbed by Shields . | . . . . . . . . . . . . . . . Core Remaining (%) 70 | 100 . . . 75 21 . . . . 87 . . . . Volleys Fired 257 | . 26 9 . . 88 53 . 20 . 2 10 19 19 11 Largest 3 | . 2 2 . . 2 3 . 3 . 1 3 3 3 1 Hottest 193 | . 70 70 . . 91 188 . 193 . 30 193 193 193 55 Shots Fired 547 | . 48 18 . . 165 136 . 51 . 2 22 57 37 11 Gun 381 | . 44 18 . . 122 84 . 41 . . 12 38 18 4 Cannon 133 | . . . . . 34 52 . 10 . . 10 19 8 . Launcher 33 | . 4 . . . 9 . . . . 2 . . 11 7 Special . | . . . . . . . . . . . . . . . Kinetic 239 | . 22 9 . . 77 88 . 10 . . 6 19 8 . Thermal 251 | . 22 9 . . 79 48 . 21 . . 16 38 18 . Explosive 19 | . 4 . . . 9 . . . . 2 . . 4 . Electromagnetic 38 | . . . . . . . . 20 . . . . 7 11 Robot Hit Streak 18 | . 8 5 . . 11 12 . 15 . 11 18 10 4 5 Robot Miss Streak 11 | . 4 4 . . 11 4 . 3 . . 2 1 3 1 Penetration Max . | . . . . . . . . . . . . . . . Secondary Targets 1 | . . . . . 1 . . . . . . . . . Max Gunslinging Chain 1 | . . . . . 1 . . . . . . . . . Shots Hit Robots 333 | . 28 10 . . 105 76 . 37 . 2 10 40 21 4 Core Hits 196 | . 22 3 . . 70 35 . 8 . 5 6 19 20 8 Critical Kills . | . . . . . . . . . . . . . . . Critical Parts Destroyed . | . . . . . . . . . . . . . . . Critical Strikes 23 | . 3 . . . 3 8 . 2 . . 1 4 2 . Burn 15 | . 3 . . . 3 5 . 2 . . . 1 1 . Blast 8 | . . . . . . 3 . . . . 1 3 1 . Melee Attacks 2 | . . . . . . . . . . . . . . 2 Impact . | . . . . . . . . . . . . . . . Slashing . | . . . . . . . . . . . . . . . Piercing 2 | . . . . . . . . . . . . . . 2 Sneak Attacks 1 | . . . . . . . . . . . . . . 1 Combat Hostiles . | . . . . . . . . . . . . . . . Follow-up Attacks . | . . . . . . . . . . . . . . . Damage Inflicted 9291 | . 695 128 . 2 3118 1789 . 691 . 260 266 977 1082 283 Guns 3855 | . 349 128 . . 1051 869 . 508 . . 125 563 225 37 Cannons 2018 | . . . . . 307 825 . 183 . . 141 414 148 . Explosions 3246 | . 346 . . . 1760 . . . . 260 . . 709 171 Melee 75 | . . . . . . . . . . . . . . 75 Ramming 97 | . . . . 2 . 95 . . . . . . . . Kinetic 2828 | . 188 64 . . 618 1072 . 183 . . 141 414 148 . Thermal 3235 | . 161 64 . . 1201 622 . 274 . . 125 563 225 . Explosive 2235 | . 346 . . . 1299 . . . . 260 . . 330 . Electromagnetic 821 | . . . . . . . . 234 . . . . 379 208 Impact . | . . . . . . . . . . . . . . . Slashing . | . . . . . . . . . . . . . . . Piercing 75 | . . . . . . . . . . . . . . 75 Highest Corruption 28 | . . . . . . . . 13 28 . . . 1 1 Average Corruption 5 | . . . . . . . . 8 14 . . . 1 1 Corruption Purged . | . . . . . . . . . . . . . . . Effects 21 | . . . . . . . . 16 3 . . . 1 1 Message Errors 6 | . . . . . . . . 4 2 . . . . . Matter Fused 2 | . . . . . . . . 1 1 . . . . . Heat Flow Errors 1 | . . . . . . . . 1 . . . . . . Energy Discharges 5 | . . . . . . . . 4 . . . . . 1 Parts Rejected 1 | . . . . . . . . 1 . . . . . . Data Loss (minor) 3 | . . . . . . . . 2 . . . . 1 . Data Loss (major) 2 | . . . . . . . . 2 . . . . . . Misfires 1 | . . . . . . . . 1 . . . . . . Overload Shots . | . . . . . . . . . . . . . . . Overflow Damage 274 | . . . . . 245 3 . 7 . . . . 19 . Projectiles 15 | . . . . . . . . 7 . . . . 8 . Explosions 256 | . . . . . 245 . . . . . . . 11 . Melee 3 | . . . . . . 3 . . . . . . . . Knockbacks 20 | . . . . . 5 7 . 2 . . 1 3 2 . Impact . | . . . . . . . . . . . . . . . Kinetic 19 | . . . . . 4 7 . 2 . . 1 3 2 . Secondary 1 | . . . . . 1 . . . . . . . . . Self-Inflicted Damage 381 | . . . . . 266 . . . . . . . 115 . Shots 11 | . . . . . 5 . . . . . . . 6 . Rammed 12 | . . . . 1 . 11 . . . . . . . . Targets Rammed 12 | . . . . 1 . 11 . . . . . . . . Kicked . | . . . . . . . . . . . . . . . Crushed . | . . . . . . . . . . . . . . . Highest Temperature 307 | . 170 203 . . 18 307 . 144 . . 24 108 36 . Average Temperature 56 | . 69 103 . . 5 72 . 40 . . 8 25 13 . Received Heat Transfer 1893 | . 108 111 . . 801 195 . 72 . . 18 276 54 258 Siege Activations . | . . . . . . . . . . . . . . . Robots Corrupted 3 | . . . . . . . . 1 . . . . 2 . Combat Hostiles 3 | . . . . . . . . 1 . . . . 2 . Parts Fried 3 | . . . . . . . . 1 . . . . 2 . Impact Corruptions 1 | . . . . . . 1 . . . . . . . . Robots Melted . | . . . . . . . . . . . . . . . Combat Hostiles . | . . . . . . . . . . . . . . . Parts Melted 9 | . 1 1 . . 3 2 . 1 . . . . 1 . Heat Transferred 6738 | . 703 185 . . 2409 1406 . 518 . . 185 925 407 . Parts Sabotaged . | . . . . . . . . . . . . . . . Parts Stolen . | . . . . . . . . . . . . . . . Parts Stripped . | . . . . . . . . . . . . . . . Power Chain Reactions . | . . . . . . . . . . . . . . . Missiles Intercepted . | . . . . . . . . . . . . . . . Alert | -11 -10 -10 -10 -9 -8 -7 -7 -7 -7 -6 -6 -6 -6 -6 ------- Run | Scr Mat Min Exi Min Mat Fac Low Low Zio Pro Fac Low Low Dat Peak Influence 867 | . 237 103 . . 560 867 . . . . 170 . . . Initial 111 | . . 18 . . . 111 . . . . 56 . . . Average 242 | . 113 19 . . 302 497 . . . . 117 . . . Maximum Alert Level 3 | . 1 . . . 2 3 . . . . . . . . Low Security (%) 60 | . 67 100 . 100 17 37 . . . . 100 . . . Level 1 16 | . 32 . . . 59 6 . . . . . . . . Level 2 6 | . . . . . 22 5 . . . . . . . . Level 3 16 | . . . . . . 50 . . . . . . . . Level 4 . | . . . . . . . . . . . . . . . Level 5 . | . . . . . . . . . . . . . . . High Security . | . . . . . . . . . . . . . . . Max Security . | . . . . . . . . . . . . . . . Squads Dispatched 12 | . 1 . . . 2 8 . . . . 1 . . . Investigation 3 | . 1 . . . . 2 . . . . . . . . Extermination 2 | . . . . . . 2 . . . . . . . . Reinforcement 7 | . . . . . 2 4 . . . . 1 . . . Assault . | . . . . . . . . . . . . . . . Garrison . | . . . . . . . . . . . . . . . Intercept . | . . . . . . . . . . . . . . . Construction Impeded 2 | . . . . . 1 1 . . . . . . . . Haulers Reinforced 2 | . . . . . . 1 . . . . 1 . . . Cargo Convoy Interrupts 1 | . . . . . . 1 . . . . . . . . Stealth | -11 -10 -10 -10 -9 -8 -7 -7 -7 -7 -6 -6 -6 -6 -6 --------- Run | Scr Mat Min Exi Min Mat Fac Low Low Zio Pro Fac Low Low Dat Distress Signals 5 | . 1 . . . 2 2 . . . . . . . . Communications Jammed . | . . . . . . . . . . . . . . . Distress Signals . | . . . . . . . . . . . . . . . Times Spotted 111 | . 10 4 . . 36 22 . 3 . 4 5 11 12 4 Peak Tracking Total 7 | . 5 2 . . 7 4 . 1 . 4 4 4 4 4 Tactical Retreats 7 | . . 1 . . 1 2 . . . . 1 1 1 . Traps | -11 -10 -10 -10 -9 -8 -7 -7 -7 -7 -6 -6 -6 -6 -6 ------- Run | Scr Mat Min Exi Min Mat Fac Low Low Zio Pro Fac Low Low Dat Traps Triggered 10 | . 2 . . . . 8 . . . . . . . . Indirectly . | . . . . . . . . . . . . . . . Trap Hack Attempts . | . . . . . . . . . . . . . . . Triggered . | . . . . . . . . . . . . . . . Disarmed . | . . . . . . . . . . . . . . . Reprogrammed . | . . . . . . . . . . . . . . . Reused . | . . . . . . . . . . . . . . . Traps Extracted . | . . . . . . . . . . . . . . . Installed . | . . . . . . . . . . . . . . . Triggered 3 | . . . . . . 1 . 1 . 1 . . . . Machines | -11 -10 -10 -10 -9 -8 -7 -7 -7 -7 -6 -6 -6 -6 -6 ---------- Run | Scr Mat Min Exi Min Mat Fac Low Low Zio Pro Fac Low Low Dat Machines Disabled 11 | . 1 . . . 4 5 . . . . . . . 1 Max in Single Turn 2 | . 1 . . . 2 1 . . . . . . . 1 Machines Sabotaged . | . . . . . . . . . . . . . . . Garrisons Compromised 1 | . . . . . . 1 . . . . . . . . Overloaded Fab Kills . | . . . . . . . . . . . . . . . Fab Network Shutdowns . | . . . . . . . . . . . . . . . Hacking | -11 -10 -10 -10 -9 -8 -7 -7 -7 -7 -6 -6 -6 -6 -6 --------- Run | Scr Mat Min Exi Min Mat Fac Low Low Zio Pro Fac Low Low Dat Machines Accessed 25 | . 3 1 4 . 3 8 . . . . 2 . . 4 Terminals 12 | . 2 . . . 3 6 . . . . 1 . . . Fabricators 3 | . . . . . . 2 . . . . 1 . . . Repair Stations . | . . . . . . . . . . . . . . . Recycling Units 1 | . 1 . . . . . . . . . . . . . Scanalyzers . | . . . . . . . . . . . . . . . Garrison Access . | . . . . . . . . . . . . . . . Total Hacks 64 | . 5 1 4 . 6 16 . . . . 3 . . 29 Successful 44 | . 2 1 4 . 2 5 . . . . 1 . . 29 Failed 20 | . 3 . . . 4 11 . . . . 2 . . . Catastrophic 4 | . 1 . . . 1 1 . . . . 1 . . . Database Lockouts . | . . . . . . . . . . . . . . . Manual 25 | . 4 . . . 6 12 . . . . 3 . . . Terminals 25 | . 4 . . . 6 13 . . . . 2 . . . Fabricators 4 | . . . . . . 3 . . . . 1 . . . Repair Stations . | . . . . . . . . . . . . . . . Recycling Units 1 | . 1 . . . . . . . . . . . . . Scanalyzers . | . . . . . . . . . . . . . . . Garrison Access . | . . . . . . . . . . . . . . . Terminal Hacks 39 | . 1 1 4 . 2 2 . . . . . . . 29 Record 15 | . . . 4 . . . . . . . . . . 11 Part Schematic 8 | . . . . . . . . . . . . . . 8 Robot Schematic 7 | . . . . . . . . . . . . . . 7 Prototype ID Bank 3 | . . . . . . . . . . . . . . 3 Open Door 1 | . . 1 . . . . . . . . . . . . Branch Access Points 1 | . 1 . . . . . . . . . . . . . Terminal Index 1 | . . . . . . 1 . . . . . . . . Unreport Threat 2 | . . . . . 1 1 . . . . . . . . Hauler Manifests 1 | . . . . . 1 . . . . . . . . . Fabricator Hacks . | . . . . . . . . . . . . . . . Repair Station Hacks . | . . . . . . . . . . . . . . . Recycling Unit Hacks . | . . . . . . . . . . . . . . . Scanalyzer . | . . . . . . . . . . . . . . . Garrison Access Hacks . | . . . . . . . . . . . . . . . Unauthorized Hacks 5 | . 1 . . . . 3 . . . . 1 . . . Terminals 2 | . . . . . . 2 . . . . . . . . Botnet 2 | . . . . . . 2 . . . . . . . . Fabricators 2 | . . . . . . 1 . . . . 1 . . . Haulers 2 | . . . . . . 1 . . . . 1 . . . Repair Stations . | . . . . . . . . . . . . . . . Recycling Units 1 | . 1 . . . . . . . . . . . . . Tunnel 1 | . 1 . . . . . . . . . . . . . Scanalyzers . | . . . . . . . . . . . . . . . Garrison Access . | . . . . . . . . . . . . . . . Data Cores Recovered . | . . . . . . . . . . . . . . . Used . | . . . . . . . . . . . . . . . Hacking Detections 14 | . 2 . . . 3 8 . . . . 1 . . . Full Trace Events . | . . . . . . . . . . . . . . . Feedback Events . | . . . . . . . . . . . . . . . Feedback Blocked . | . . . . . . . . . . . . . . . Robot Schematics Acquired 7 | . . . . . . . . . . . . . . 7 Robots Built . | . . . . . . . . . . . . . . . Matter . | . . . . . . . . . . . . . . . Time . | . . . . . . . . . . . . . . . Total Robot Build Rating . | . . . . . . . . . . . . . . . Part Schematics Acquired 8 | . . . . . . . . . . . . . . 8 Parts Built . | . . . . . . . . . . . . . . . Matter . | . . . . . . . . . . . . . . . Time . | . . . . . . . . . . . . . . . Total Part Build Rating . | . . . . . . . . . . . . . . . Parts Repaired . | . . . . . . . . . . . . . . . Time . | . . . . . . . . . . . . . . . Parts Recycled . | . . . . . . . . . . . . . . . Recycled Matter . | . . . . . . . . . . . . . . . Retrieved Matter . | . . . . . . . . . . . . . . . Retrieved Components . | . . . . . . . . . . . . . . . Parts Scanalyzed . | . . . . . . . . . . . . . . . Part Schematics Acquired . | . . . . . . . . . . . . . . . Parts Damaged . | . . . . . . . . . . . . . . . Bothacking | -11 -10 -10 -10 -9 -8 -7 -7 -7 -7 -6 -6 -6 -6 -6 ------------ Run | Scr Mat Min Exi Min Mat Fac Low Low Zio Pro Fac Low Low Dat Used RIF Installer . | . . . . . . . . . . . . . . . Robots Hacked . | . . . . . . . . . . . . . . . Non-combat . | . . . . . . . . . . . . . . . Combat . | . . . . . . . . . . . . . . . Robot Hacks Applied . | . . . . . . . . . . . . . . . Relay Couplers Released . | . . . . . . . . . . . . . . . Robots Rewired . | . . . . . . . . . . . . . . . Allies Hacked . | . . . . . . . . . . . . . . . Hacks Repelled . | . . . . . . . . . . . . . . . Allies | -11 -10 -10 -10 -9 -8 -7 -7 -7 -7 -6 -6 -6 -6 -6 -------- Run | Scr Mat Min Exi Min Mat Fac Low Low Zio Pro Fac Low Low Dat Total Allies 21 | . . 3 . . . 18 . . . . . . . . Largest Group 18 | . . 3 3 3 3 18 . . . . . . . . Highest-Rated Group 698 | . . 40 40 40 40 698 . . . . . . . . Highest-Rated Ally 74 | . . 16 16 16 16 74 . . . . . . . . Total Orders . | . . . . . . . . . . . . . . . Ally Attacks 138 | . . 12 . . 22 104 . . . . . . . . Total Damage 2041 | . . 157 . . 171 1713 . . . . . . . . Kills 29 | . . 3 . . 4 22 . . . . . . . . Allies Corrupted . | . . . . . . . . . . . . . . . Allies Melted . | . . . . . . . . . . . . . . . Intel | -11 -10 -10 -10 -9 -8 -7 -7 -7 -7 -6 -6 -6 -6 -6 ------- Run | Scr Mat Min Exi Min Mat Fac Low Low Zio Pro Fac Low Low Dat Robot Analysis Total . | . . . . . . . . . . . . . . . Derelict Logs Recovered 12 | . . 1 . 1 . . 2 1 2 2 . 2 1 . Drone Launches . | . . . . . . . . . . . . . . . Drone Recoveries . | . . . . . . . . . . . . . . . Exploration | -11 -10 -10 -10 -9 -8 -7 -7 -7 -7 -6 -6 -6 -6 -6 ------------- Run | Scr Mat Min Exi Min Mat Fac Low Low Zio Pro Fac Low Low Dat Turns Passed 9912 | . 484 865 456 727 998 1666 463 563 1689 374 428 545 477 177 Spaces Moved 5833 | 1 338 593 315 498 392 973 258 268 1071 235 245 296 264 86 Core 1 | . . . . . . . . . . . . . . 1 Treads 272 | . . . . . 202 70 . . . . . . . . Legs 66 | 1 65 . . . . . . . . . . . . . Wheels 5494 | . 273 593 315 498 190 903 258 268 1071 235 245 296 264 85 Hover . | . . . . . . . . . . . . . . . Flight . | . . . . . . . . . . . . . . . Fastest Speed 105 | 120 105 105 145 145 115 120 180 165 125 155 155 155 150 135 Average Speed 150 | 120 110 136 145 145 173 141 180 179 155 155 155 155 156 176 Slowest Speed 1400 | 120 280 145 145 145 260 260 180 180 180 155 155 155 165 1400 Overloaded Moves . | . . . . . . . . . . . . . . . Propulsion Burnouts . | . . . . . . . . . . . . . . . Robots Hopped . | . . . . . . . . . . . . . . . Cave-ins Triggered . | . . . . . . . . . . . . . . . Exploration Rate (%) 53 | 1 54 98 70 91 41 28 43 75 85 41 7 45 43 80 Regions Visited 14 Branch Regions 10 Pre-discovered Areas 6 | . 1 1 . . . . 1 . 2 . . . . 1 Known Exits Taken 8 | . 1 . . . 1 1 1 1 1 1 1 . . . Unknown Exits Taken 6 | 1 . 1 1 1 . . . . . . . 1 1 . Scrap Searched 18 | . . 1 . 1 . . 1 3 4 5 . 3 . . Spaces Dug 12 | . . . . . 8 . . . . . 4 . . . Terrain Destroyed 107 | . 11 . . . 55 9 . 1 . 7 4 3 17 . Melee . | . . . . . . . . . . . . . . . Projectile 19 | . . . . . . 9 . 1 . . 4 3 2 . AOE 88 | . 11 . . . 55 . . . . 7 . . 15 . Terrain Rammed . | . . . . . . . . . . . . . . . Walls Destroyed . | . . . . . . . . . . . . . . . Machines Disabled . | . . . . . . . . . . . . . . . Actions | -11 -10 -10 -10 -9 -8 -7 -7 -7 -7 -6 -6 -6 -6 -6 --------- Run | Scr Mat Min Exi Min Mat Fac Low Low Zio Pro Fac Low Low Dat Total 6442 | . 398 628 314 500 542 1144 257 309 1092 243 277 339 293 106 Wait 77 | . 6 22 . . 9 20 . . . . 1 18 . 1 Move 5819 | . 337 592 314 497 391 972 257 267 1070 234 244 295 263 86 Hop . | . . . . . . . . . . . . . . . Pick Up 74 | . 16 1 . 2 13 12 . 8 6 3 7 2 1 3 Fast Attach 30 | . 3 . . . 9 13 . 1 3 . 1 . . . Attach 41 | . 1 2 . . 14 5 . 4 1 1 3 3 6 1 Detach 9 | . . . . . 2 4 . . 1 1 1 . . . Swap 50 | . 5 2 . . 9 10 . 4 5 1 5 2 4 3 Drop 48 | . 4 . . . 7 20 . 5 6 1 5 . . . Fire 257 | . 26 9 . . 88 53 . 20 . 2 10 19 19 11 Melee 1 | . . . . . . . . . . . . . . 1 Ram . | . . . . . . . . . . . . . . . Kick . | . . . . . . . . . . . . . . . Crush 12 | . . . . 1 . 11 . . . . . . . . Escape Stasis 24 | . . . . . . 24 . . . . . . . . Rewire . | . . . . . . . . . . . . . . . Trap . | . . . . . . . . . . . . . . . Miscellaneous . | . . . . . . . . . . . . . . . Route ------- -11/Scrapyard -10/Materials -10/Mines (discovered 3 exits: [*Mat x2] / *Exi) -10/Exiles (discovered 2 exits: [*Min x2]) -9/Mines (discovered 2 exits: *Mat x2) -8/Materials (discovered 4 exits: *Fac x2 / [*Sto x2]) -7/Factory (discovered 2 exits: *Fac / *Low) -7/Lower Caves -7/Lower Caves -7/Zion -6/Proximity Caves -6/Factory (discovered 2 exits: Fac / *Low) -6/Lower Caves -6/Lower Caves -6/Data Miner (discovered 1 exit: [*Pro]) History --------- Turn | Location | Event 1 | -11/Scrapyard | Discovered new exit (range 0) 1 | -11/Scrapyard | Entered Materials 261 | -10/Materials | Identified exit to Mines 318 | -10/Materials | Build established: Mutant 485 | -10/Materials | Entered Mines 541 | -10/Mines | Received a Rocket Launcher from a helpful Derelict 589 | -10/Mines | Learned location of Zion (-7) 601 | -10/Mines | Found a hidden stash of uninstalled traps 725 | -10/Mines | Assisted by bots powering up and referring to "LRC-V3" 839 | -10/Mines | Discovered new exit (range 4) 919 | -10/Mines | Met a Derelict who couldn't figure out how to use a Trap Extractor 978 | -10/Mines | Discovered new exit (range 10) 1083 | -10/Mines | Deemed a non-threat by the Exiles lab entrance 1337 | -10/Mines | Discovered new exit (range 5) 1350 | -10/Mines | Entered Exiles 1350 | -10/Exiles | Found Exiles lab abandoned 1350 | -10/Exiles | Accompanied by 3 allies 1372 | -10/Exiles | Discovered new exit (range 15) 1788 | -10/Exiles | Discovered new exit (range 12) 1806 | -10/Exiles | Entered Mines 1806 | -9/Mines | Accompanied by 3 allies 2006 | -9/Mines | Discovered new exit (range 6) 2377 | -9/Mines | A weapon hastily lodged in a ceiling crevice suddenly fell to the ground 2456 | -9/Mines | Discovered new exit (range 4) 2533 | -9/Mines | Entered Materials 2533 | -8/Materials | Accompanied by 3 allies 2533 | -8/Materials | Evolved 4 slots: Propulsion x1, Utility x3 2534 | -8/Materials | Identified exit to Factory 2563 | -8/Materials | Discovered new exit (range 11) 2834 | -8/Materials | Core integrity fell below 50% 2861 | -8/Materials | Destroyed 7 combat bots 2866 | -8/Materials | Lost 5 parts (1n3u1w) 2884 | -8/Materials | Discovered new exit (range 9) 2995 | -8/Materials | Lost 7 parts (1p2n4u) 3352 | -8/Materials | Discovered exit to Factory (range 16) 3376 | -8/Materials | Build established: Scavenger-Mutant 3531 | -8/Materials | Entered Factory 3531 | -7/Factory | Evolved 2 slots: Propulsion x1, Weapon x1 3809 | -7/Factory | Build established: Scavenger-Tank 3851 | -7/Factory | Lost 4 parts (1n2u1w) 4232 | -7/Factory | Build established: Tank 4262 | -7/Factory | Cargo convoy interrupted 4811 | -7/Factory | Discovered new exit (range 5) 4824 | -7/Factory | Identified exit to Factory 5095 | -7/Factory | Discovered new exit (range 15) 5167 | -7/Factory | Identified exit to Lower Caves 5197 | -7/Factory | Entered Lower Caves 5226 | -7/Lower Caves | Learned Factory trap positions 5245 | -7/Lower Caves | Encountered a Warlord checkpoint 5624 | -7/Lower Caves | Discovered new exit (range 5) 5631 | -7/Lower Caves | Identified exit to Lower Caves 5660 | -7/Lower Caves | Entered another Lower Caves area 5794 | -7/Lower Caves | Spotted B-75 Beast 5829 | -7/Lower Caves | Destroyed B-75 Beast 5854 | -7/Lower Caves | Lost 3 parts (1n2u) 5858 | -7/Lower Caves | System corruption reached 10% 5928 | -7/Lower Caves | Learned Factory security intel 6095 | -7/Lower Caves | Build established: Scavenger-Tank 6213 | -7/Lower Caves | Discovered new exit (range 4) 6220 | -7/Lower Caves | Identified exit to Zion 6223 | -7/Lower Caves | Entered Zion 6317 | -7/Zion | System corruption cleaned by Quarantine Array 6640 | -7/Zion | Learned Factory recycling unit intel 6676 | -7/Zion | Given the Hacking Drone Bay 6689 | -7/Zion | Learned Factory terminal intel 6914 | -7/Zion | Found CR-A16's Pointy Stick 7007 | -7/Zion | Learned location of Quarantine (-3) 7072 | -7/Zion | Learned Factory emergency access door positions 7421 | -7/Zion | Learned location of 1 exit from Factory 7456 | -7/Zion | Build established: Tank 7634 | -7/Zion | Found Prototype Device 7892 | -7/Zion | Discovered new exit (range 14) 7910 | -7/Zion | Identified exit to Proximity Caves 7912 | -7/Zion | Entered Proximity Caves 8267 | -6/Proximity Caves | Learned Factory terminal intel 8286 | -6/Proximity Caves | Entered Factory 8286 | -6/Factory | Evolved 2 slots: Power x1, Utility x1 8287 | -6/Factory | Identified exit to Factory 8288 | -6/Factory | Loaded intel: 78 trap records 8291 | -6/Factory | Loaded intel: 22 terminal locations 8292 | -6/Factory | Loaded intel: 6 recycling unit locations 8442 | -6/Factory | Found Hvy. Reactive Plating 8527 | -6/Factory | Discovered new exit (range 5) 8541 | -6/Factory | Identified exit to Lower Caves 8714 | -6/Factory | Entered Lower Caves 8721 | -6/Lower Caves | Learned location of 1 exit from Factory 8818 | -6/Lower Caves | Learned Factory non-interactive machine intel 8918 | -6/Lower Caves | Attracted the attention of an 0b10 checkpoint 9199 | -6/Lower Caves | Discovered new exit (range 6) 9234 | -6/Lower Caves | Build established: Scavenger-Tank 9259 | -6/Lower Caves | Entered another Lower Caves area 9644 | -6/Lower Caves | Lost 3 parts (1p1n1u) 9718 | -6/Lower Caves | Discovered new exit (range 7) 9736 | -6/Lower Caves | Entered Data Miner 9736 | -6/Data Miner | Discovered new exit (range 6) 9758 | -6/Data Miner | Met Data Miner 9806 | -6/Data Miner | Learned location of Section 7 (-2) 9806 | -6/Data Miner | Acquired the access code to Warlord's prototype stash 9827 | -6/Data Miner | Received God Mode back door access code from Data Miner 9859 | -6/Data Miner | Destroyed Data Miner 9861 | -6/Data Miner | Found Prototype Hackware 9864 | -6/Data Miner | Found Prototype Hackware 9866 | -6/Data Miner | Found Prototype Hackware 9868 | -6/Data Miner | Data Conduit disabled 9907 | -6/Data Miner | Core integrity fell below 50% 9911 | -6/Data Miner | Core integrity fell below 20% 9913 | -6/Data Miner | Destroyed by Enhanced Grunt with Neutron Cannon Last Messages --------------- better use than Warlord, so if you see an opportunity, hack it and enter \\MMHF to gain control via the back door I've installed. Now off with you. 09859_ Sneak attack on Data Miner. 09859_ Data Miner destroyed. 09861_ Acquired Prototype Hackware. 09868_ System corrupted: Energy discharge (-163). 09868_ Data Conduit disabled. 09885_ Proton Missile Launcher destroyed. 09893_ Imp. Cooling System destroyed. 09893_ Lyr. Medium Armor Plating destroyed. 09894_ Imp. Medium Treads destroyed. 09894_ Angular Momentum Engine destroyed. 09896_ Prc. Shock Rifle destroyed. 09899_ Hvy. Deuterium Engine destroyed. 09901_ Imp. Medium Treads destroyed. 09901_ Wheel destroyed. 09903_ Mak. Spear destroyed. 09903_ Imp. Heat Sink destroyed. 09908_ Com. Wheel destroyed. Map ----- +----------------------------------------------------+ | | | | | | | | | | | | | | | | | | | | | | | | | | | | | | | ?????????????????????????????????????????????? | | ?????????????????????????????????????????????? | | ?????????????????????????????????????????????? | | ?????????????????????????????????????????????? | | ?????????????????????????????????????####????? | | ????#################??????????????### #????? | | ???##"""""""" ######?#??????## #????? | | ???#""""""" # # # # ## < ##????? | | ??#""""""""" ###### | | ??#"""""" gg # | | ??#"""""" = @ g # | | ??#""""""% g # | | ??#""""" ## | | ??#""""""" """"""""""""""""#####? | | ??#"""""""" """"###############????? | | ??##""""""" """""###??????????????????? | | ???##"""""""" "#####????????????????????? | | ????########"## "#????????????????????????? | | ???????????#"### "#????????????????????????? | | ???????????#"### "#????????????????????????? | | ???????????#"## "#????????????????????????? | | ???????????#"## "#????????????????????????? | | ????????????"# "#????????????????????????? | | ?????????????### "#????????????????????????? | | ???????????????# "##???????????????????????? | | ??????????????## ""#???????????????????????? | | ???????????#?## ""#???????????????????????? | | ????????#"##"#"X ""#???????????????????????? | | ????????#"""""" "#####???????????????????? | | ????????##""""" X"""""#???????????????????? | | ?????????###"#"X "##"##???????????????????? | | ???????????#"## X""""#????????????????????? | | ???????????#??## "##"#????????????????????? | | ???????????????#######??#????????????????????? | | ?????????????????????????????????????????????? | +----------------------------------------------------+ Best States ------------- Heat Dissipation 78 Energy Generation 31 Energy Capacity 520 Matter Stores 300 Matter Capacity 300 Sight Range 22 Terrain Scan Density 10 Armor Coverage 450 Resistance: TH 15 Propulsion Shielding 33 Weapon Cycling 15 Evasion (%) 55 Recoil Reduction 3 Defensive Hacking 10 Item Schematics ----------------- Combat Drone Bay | -6/Data Miner | Free Lgt. Regenerative Plating | -6/Data Miner | Free Cmb. Gravmag System | -6/Data Miner | Free Exp. Terrain Scan Processor | -6/Data Miner | Free Exp. ECM Suite | -6/Data Miner | Free Mni. Smartbomb Launcher | -6/Data Miner | Free Plasma Sword | -6/Data Miner | Free Kinetic Spear | -6/Data Miner | Free Robot Schematics ------------------ S-27 Virus | -6/Data Miner | Free G-50 Soldier | -6/Data Miner | Free G-67 Veteran | -6/Data Miner | Free L-41 Fighter | -6/Data Miner | Free X-72 Disruptor | -6/Data Miner | Free P-70 Sage | -6/Data Miner | Free I-36 Angel | -6/Data Miner | Free Fabricated ------------ Nothing Alien Tech Used ----------------- None Achievements -------------- None Challenges ------------ None Game ------ Seed SniperTransportSegregator Manual? 0 Play Time 00:55:51 Cumulative 392.0 hours Start 2021.06.14 @ 17:25:53 End 2021.06.14 @ 19:09:01 Sessions 1 Manual Loads 0 Difficulty Rogue Special Mode None Game No. 213 Rogue 213 Adventurer 0 Explorer 0 Win Type - Total 15 Types 1/5/2/1/0/1/4/1/0 Lore% 88 Gallery% 90 Achievement% 72 Wizard Run 0 Options --------- ASCII 1 Keyboard 1 Movement Vi Keybinds 0 Fullscreen 1 Font 16/Terminus Map View 75x55 Tactical HUD 1 Map Filters NONE Filters NONE Steam 1 RUN: 554cf8f4-a2cc-44ed-bc74-7d3f2bbf19b4